{"text_format":"3","workbook":"xlsx","n_sheets":5,"sheets":["Fatura","Clientes","Faturas – Principal","Detalhes da fatura","Sobre o controlador de faturas"],"not_rendered":{"defined_names":8},"read":"whole","date_system":"1900"}

{"sheet":"Fatura","index":0,"n_rows":39,"n_cols":7,"rows_kept":39,"merged":[[1,1,1,2],[1,3,1,4],[1,5,1,6],[2,1,2,2],[2,3,2,4],[2,5,2,6],[3,3,3,4],[4,3,4,4],[5,3,5,4],[37,1,37,4],[38,1,38,4]]}
[null,"Nome da Empresa"]
[null,"Endereço",null,"Tel.: Número do telefone",null,"Email"]
[null,"Cidade, estado, CEP",null,"Fax: Número do fax",null,"Site"]
[null,"Cobrança para:",{"$f":"IFERROR(VLOOKUP(VLOOKUP(rngFatura,FaturasPrincipal[],2,FALSE),ListaClientes[],3,TRUE),\"\")","v":"Contoso, Ltd"},{"$f":"\"Telefone: \"&IFERROR(VLOOKUP(VLOOKUP(rngFatura,FaturasPrincipal[],2,FALSE),ListaClientes[],9,FALSE),\"\")","v":"Telefone: (55) 3555-0189"},null,"Nº da fatura:","3-456-2"]
[null,"Endereço:",{"$f":"IFERROR(IF((VLOOKUP(VLOOKUP(rngFatura,FaturasPrincipal[],2,FALSE),ListaClientes[],5,FALSE))=\"\",\"\",(VLOOKUP(VLOOKUP(rngFatura,FaturasPrincipal[],2,FALSE),ListaClientes[],5,FALSE))),\"\")","v":"Rua Castanheira, 555"},{"$f":"\"Fax:         \"&IFERROR(VLOOKUP(VLOOKUP(rngFatura,FaturasPrincipal[],2,FALSE),ListaClientes[],11,FALSE),\"\")","v":"Fax:         (55) 3693-0123"},null,"Data da fatura:",{"$f":"IFERROR(IF(VLOOKUP(rngFatura,FaturasPrincipal[],3,FALSE)=\"\",\"\",VLOOKUP(rngFatura,FaturasPrincipal[],3,FALSE)),\"\")","v":{"v":43716,"d":"4371600.00%"}}]
[null,null,{"$f":"IFERROR(VLOOKUP(VLOOKUP(rngFatura,FaturasPrincipal[],2,FALSE),ListaClientes[],6,FALSE)&\", \"& VLOOKUP(VLOOKUP(G4,FaturasPrincipal[],2,FALSE),ListaClientes[],7,FALSE)&\" \"&VLOOKUP(VLOOKUP(G4,FaturasPrincipal[],2,FALSE),ListaClientes[],8,FALSE),\"\")","v":"Campinas, SP 098765"},{"$f":"\"Email: \"&IFERROR(VLOOKUP(VLOOKUP(rngFatura,FaturasPrincipal[],2,FALSE),ListaClientes[],10,FALSE),\"\")","v":"Email: pessoa@exemplo.com"}]
[null,{"$f":"\"Fatura de: \"&IFERROR(VLOOKUP(rngFatura,FaturasPrincipal[],4),\"\")","v":"Fatura de: Projeto 2"}]
[null,"Nº do item","Descrição","Qtd.","Preço unitário","Desconto","Preço"]
[null,{"$f":"IFERROR(INDEX(DetalhesDaFatura[],SMALL(IF(DetalhesDaFatura[Nº da fatura]=rngFatura,ROW(DetalhesDaFatura[])-ROW(DetalhesDaFatura[#Headers])), ROW(1:1)), MATCH($B$8, DetalhesDaFatura[#Headers], 0)),\"\")","v":"Z4567"},{"$f":"IFERROR(INDEX(DetalhesDaFatura[],SMALL(IF(DetalhesDaFatura[Nº da fatura]=rngFatura,ROW(DetalhesDaFatura[])-ROW(DetalhesDaFatura[#Headers])), ROW(1:1)), MATCH($C$8, DetalhesDaFatura[#Headers], 0)),\"\")","v":"Fatura 3-456-2 Dados 1"},{"$f":"IFERROR(INDEX(DetalhesDaFatura[],SMALL(IF(DetalhesDaFatura[Nº da fatura]=rngFatura,ROW(DetalhesDaFatura[])-ROW(DetalhesDaFatura[#Headers])), ROW(1:1)), MATCH($D$8, DetalhesDaFatura[#Headers], 0)),\"\")","v":39},{"$f":"IFERROR(INDEX(DetalhesDaFatura[],SMALL(IF(DetalhesDaFatura[Nº da fatura]=rngFatura,ROW(DetalhesDaFatura[])-ROW(DetalhesDaFatura[#Headers])), ROW(1:1)), MATCH($E$8, DetalhesDaFatura[#Headers], 0)),\"\")","v":{"v":5,"d":"R$ 5.00"}},{"$f":"IFERROR(INDEX(DetalhesDaFatura[],SMALL(IF(DetalhesDaFatura[Nº da fatura]=rngFatura,ROW(DetalhesDaFatura[])-ROW(DetalhesDaFatura[#Headers])), ROW(1:1)), MATCH($F$8, DetalhesDaFatura[#Headers], 0)),\"\")","v":0},{"$f":"IFERROR((D9*E9)-F9,\"\")","v":{"v":195,"d":"R$ 195.00"}}]
[null,{"$f":"IFERROR(INDEX(DetalhesDaFatura[],SMALL(IF(DetalhesDaFatura[Nº da fatura]=rngFatura,ROW(DetalhesDaFatura[])-ROW(DetalhesDaFatura[#Headers])), ROW(2:2)), MATCH($B$8, DetalhesDaFatura[#Headers], 0)),\"\")","v":"Z4568"},{"$f":"IFERROR(INDEX(DetalhesDaFatura[],SMALL(IF(DetalhesDaFatura[Nº da fatura]=rngFatura,ROW(DetalhesDaFatura[])-ROW(DetalhesDaFatura[#Headers])), ROW(2:2)), MATCH($C$8, DetalhesDaFatura[#Headers], 0)),\"\")","v":"Fatura 3-456-2 Dados 2"},{"$f":"IFERROR(INDEX(DetalhesDaFatura[],SMALL(IF(DetalhesDaFatura[Nº da fatura]=rngFatura,ROW(DetalhesDaFatura[])-ROW(DetalhesDaFatura[#Headers])), ROW(2:2)), MATCH($D$8, DetalhesDaFatura[#Headers], 0)),\"\")","v":40},{"$f":"IFERROR(INDEX(DetalhesDaFatura[],SMALL(IF(DetalhesDaFatura[Nº da fatura]=rngFatura,ROW(DetalhesDaFatura[])-ROW(DetalhesDaFatura[#Headers])), ROW(2:2)), MATCH($E$8, DetalhesDaFatura[#Headers], 0)),\"\")","v":{"v":4,"d":"R$ 4.00"}},{"$f":"IFERROR(INDEX(DetalhesDaFatura[],SMALL(IF(DetalhesDaFatura[Nº da fatura]=rngFatura,ROW(DetalhesDaFatura[])-ROW(DetalhesDaFatura[#Headers])), ROW(2:2)), MATCH($F$8, DetalhesDaFatura[#Headers], 0)),\"\")","v":{"v":5,"d":"R$ 5.00"}},{"v":155,"d":"R$ 155.00"}]
[null,{"$f":"IFERROR(INDEX(DetalhesDaFatura[],SMALL(IF(DetalhesDaFatura[Nº da fatura]=rngFatura,ROW(DetalhesDaFatura[])-ROW(DetalhesDaFatura[#Headers])), ROW(3:3)), MATCH($B$8, DetalhesDaFatura[#Headers], 0)),\"\")","v":"Z4569"},{"$f":"IFERROR(INDEX(DetalhesDaFatura[],SMALL(IF(DetalhesDaFatura[Nº da fatura]=rngFatura,ROW(DetalhesDaFatura[])-ROW(DetalhesDaFatura[#Headers])), ROW(3:3)), MATCH($C$8, DetalhesDaFatura[#Headers], 0)),\"\")","v":"Fatura 3-456-2 Dados 3"},{"$f":"IFERROR(INDEX(DetalhesDaFatura[],SMALL(IF(DetalhesDaFatura[Nº da fatura]=rngFatura,ROW(DetalhesDaFatura[])-ROW(DetalhesDaFatura[#Headers])), ROW(3:3)), MATCH($D$8, DetalhesDaFatura[#Headers], 0)),\"\")","v":30},{"$f":"IFERROR(INDEX(DetalhesDaFatura[],SMALL(IF(DetalhesDaFatura[Nº da fatura]=rngFatura,ROW(DetalhesDaFatura[])-ROW(DetalhesDaFatura[#Headers])), ROW(3:3)), MATCH($E$8, DetalhesDaFatura[#Headers], 0)),\"\")","v":{"v":6,"d":"R$ 6.00"}},{"$f":"IFERROR(INDEX(DetalhesDaFatura[],SMALL(IF(DetalhesDaFatura[Nº da fatura]=rngFatura,ROW(DetalhesDaFatura[])-ROW(DetalhesDaFatura[#Headers])), ROW(3:3)), MATCH($F$8, DetalhesDaFatura[#Headers], 0)),\"\")","v":{"v":7,"d":"R$ 7.00"}},{"v":173,"d":"R$ 173.00"}]
[null,{"$f":"IFERROR(INDEX(DetalhesDaFatura[],SMALL(IF(DetalhesDaFatura[Nº da fatura]=rngFatura,ROW(DetalhesDaFatura[])-ROW(DetalhesDaFatura[#Headers])), ROW(4:4)), MATCH($B$8, DetalhesDaFatura[#Headers], 0)),\"\")","v":"Z4570"},{"$f":"IFERROR(INDEX(DetalhesDaFatura[],SMALL(IF(DetalhesDaFatura[Nº da fatura]=rngFatura,ROW(DetalhesDaFatura[])-ROW(DetalhesDaFatura[#Headers])), ROW(4:4)), MATCH($C$8, DetalhesDaFatura[#Headers], 0)),\"\")","v":"Fatura 3-456-2 Dados 4"},{"$f":"IFERROR(INDEX(DetalhesDaFatura[],SMALL(IF(DetalhesDaFatura[Nº da fatura]=rngFatura,ROW(DetalhesDaFatura[])-ROW(DetalhesDaFatura[#Headers])), ROW(4:4)), MATCH($D$8, DetalhesDaFatura[#Headers], 0)),\"\")","v":40},{"$f":"IFERROR(INDEX(DetalhesDaFatura[],SMALL(IF(DetalhesDaFatura[Nº da fatura]=rngFatura,ROW(DetalhesDaFatura[])-ROW(DetalhesDaFatura[#Headers])), ROW(4:4)), MATCH($E$8, DetalhesDaFatura[#Headers], 0)),\"\")","v":{"v":7,"d":"R$ 7.00"}},{"$f":"IFERROR(INDEX(DetalhesDaFatura[],SMALL(IF(DetalhesDaFatura[Nº da fatura]=rngFatura,ROW(DetalhesDaFatura[])-ROW(DetalhesDaFatura[#Headers])), ROW(4:4)), MATCH($F$8, DetalhesDaFatura[#Headers], 0)),\"\")","v":0},{"v":280,"d":"R$ 280.00"}]
[null,{"$f":"IFERROR(INDEX(DetalhesDaFatura[],SMALL(IF(DetalhesDaFatura[Nº da fatura]=rngFatura,ROW(DetalhesDaFatura[])-ROW(DetalhesDaFatura[#Headers])), ROW(5:5)), MATCH($B$8, DetalhesDaFatura[#Headers], 0)),\"\")","v":"Z4571"},{"$f":"IFERROR(INDEX(DetalhesDaFatura[],SMALL(IF(DetalhesDaFatura[Nº da fatura]=rngFatura,ROW(DetalhesDaFatura[])-ROW(DetalhesDaFatura[#Headers])), ROW(5:5)), MATCH($C$8, DetalhesDaFatura[#Headers], 0)),\"\")","v":"Fatura 3-456-2 Dados 5"},{"$f":"IFERROR(INDEX(DetalhesDaFatura[],SMALL(IF(DetalhesDaFatura[Nº da fatura]=rngFatura,ROW(DetalhesDaFatura[])-ROW(DetalhesDaFatura[#Headers])), ROW(5:5)), MATCH($D$8, DetalhesDaFatura[#Headers], 0)),\"\")","v":10},{"$f":"IFERROR(INDEX(DetalhesDaFatura[],SMALL(IF(DetalhesDaFatura[Nº da fatura]=rngFatura,ROW(DetalhesDaFatura[])-ROW(DetalhesDaFatura[#Headers])), ROW(5:5)), MATCH($E$8, DetalhesDaFatura[#Headers], 0)),\"\")","v":{"v":4,"d":"R$ 4.00"}},{"$f":"IFERROR(INDEX(DetalhesDaFatura[],SMALL(IF(DetalhesDaFatura[Nº da fatura]=rngFatura,ROW(DetalhesDaFatura[])-ROW(DetalhesDaFatura[#Headers])), ROW(5:5)), MATCH($F$8, DetalhesDaFatura[#Headers], 0)),\"\")","v":0},{"v":40,"d":"R$ 40.00"}]
[null,{"$f":"IFERROR(INDEX(DetalhesDaFatura[],SMALL(IF(DetalhesDaFatura[Nº da fatura]=rngFatura,ROW(DetalhesDaFatura[])-ROW(DetalhesDaFatura[#Headers])), ROW(6:6)), MATCH($B$8, DetalhesDaFatura[#Headers], 0)),\"\")","v":"Z4572"},{"$f":"IFERROR(INDEX(DetalhesDaFatura[],SMALL(IF(DetalhesDaFatura[Nº da fatura]=rngFatura,ROW(DetalhesDaFatura[])-ROW(DetalhesDaFatura[#Headers])), ROW(6:6)), MATCH($C$8, DetalhesDaFatura[#Headers], 0)),\"\")","v":"Fatura 3-456-2 Dados 6"},{"$f":"IFERROR(INDEX(DetalhesDaFatura[],SMALL(IF(DetalhesDaFatura[Nº da fatura]=rngFatura,ROW(DetalhesDaFatura[])-ROW(DetalhesDaFatura[#Headers])), ROW(6:6)), MATCH($D$8, DetalhesDaFatura[#Headers], 0)),\"\")","v":5},{"$f":"IFERROR(INDEX(DetalhesDaFatura[],SMALL(IF(DetalhesDaFatura[Nº da fatura]=rngFatura,ROW(DetalhesDaFatura[])-ROW(DetalhesDaFatura[#Headers])), ROW(6:6)), MATCH($E$8, DetalhesDaFatura[#Headers], 0)),\"\")","v":{"v":8,"d":"R$ 8.00"}},{"$f":"IFERROR(INDEX(DetalhesDaFatura[],SMALL(IF(DetalhesDaFatura[Nº da fatura]=rngFatura,ROW(DetalhesDaFatura[])-ROW(DetalhesDaFatura[#Headers])), ROW(6:6)), MATCH($F$8, DetalhesDaFatura[#Headers], 0)),\"\")","v":0},{"v":40,"d":"R$ 40.00"}]
[null,{"$f":"IFERROR(INDEX(DetalhesDaFatura[],SMALL(IF(DetalhesDaFatura[Nº da fatura]=rngFatura,ROW(DetalhesDaFatura[])-ROW(DetalhesDaFatura[#Headers])), ROW(7:7)), MATCH($B$8, DetalhesDaFatura[#Headers], 0)),\"\")","v":"Z4573"},{"$f":"IFERROR(INDEX(DetalhesDaFatura[],SMALL(IF(DetalhesDaFatura[Nº da fatura]=rngFatura,ROW(DetalhesDaFatura[])-ROW(DetalhesDaFatura[#Headers])), ROW(7:7)), MATCH($C$8, DetalhesDaFatura[#Headers], 0)),\"\")","v":"Fatura 3-456-2 Dados 7"},{"$f":"IFERROR(INDEX(DetalhesDaFatura[],SMALL(IF(DetalhesDaFatura[Nº da fatura]=rngFatura,ROW(DetalhesDaFatura[])-ROW(DetalhesDaFatura[#Headers])), ROW(7:7)), MATCH($D$8, DetalhesDaFatura[#Headers], 0)),\"\")","v":70},{"$f":"IFERROR(INDEX(DetalhesDaFatura[],SMALL(IF(DetalhesDaFatura[Nº da fatura]=rngFatura,ROW(DetalhesDaFatura[])-ROW(DetalhesDaFatura[#Headers])), ROW(7:7)), MATCH($E$8, DetalhesDaFatura[#Headers], 0)),\"\")","v":{"v":6,"d":"R$ 6.00"}},{"$f":"IFERROR(INDEX(DetalhesDaFatura[],SMALL(IF(DetalhesDaFatura[Nº da fatura]=rngFatura,ROW(DetalhesDaFatura[])-ROW(DetalhesDaFatura[#Headers])), ROW(7:7)), MATCH($F$8, DetalhesDaFatura[#Headers], 0)),\"\")","v":0},{"v":420,"d":"R$ 420.00"}]
[null,{"$f":"IFERROR(INDEX(DetalhesDaFatura[],SMALL(IF(DetalhesDaFatura[Nº da fatura]=rngFatura,ROW(DetalhesDaFatura[])-ROW(DetalhesDaFatura[#Headers])), ROW(8:8)), MATCH($B$8, DetalhesDaFatura[#Headers], 0)),\"\")","v":"Z4574"},{"$f":"IFERROR(INDEX(DetalhesDaFatura[],SMALL(IF(DetalhesDaFatura[Nº da fatura]=rngFatura,ROW(DetalhesDaFatura[])-ROW(DetalhesDaFatura[#Headers])), ROW(8:8)), MATCH($C$8, DetalhesDaFatura[#Headers], 0)),\"\")","v":"Fatura 3-456-2 Dados 8"},{"$f":"IFERROR(INDEX(DetalhesDaFatura[],SMALL(IF(DetalhesDaFatura[Nº da fatura]=rngFatura,ROW(DetalhesDaFatura[])-ROW(DetalhesDaFatura[#Headers])), ROW(8:8)), MATCH($D$8, DetalhesDaFatura[#Headers], 0)),\"\")","v":25},{"$f":"IFERROR(INDEX(DetalhesDaFatura[],SMALL(IF(DetalhesDaFatura[Nº da fatura]=rngFatura,ROW(DetalhesDaFatura[])-ROW(DetalhesDaFatura[#Headers])), ROW(8:8)), MATCH($E$8, DetalhesDaFatura[#Headers], 0)),\"\")","v":{"v":4,"d":"R$ 4.00"}},{"$f":"IFERROR(INDEX(DetalhesDaFatura[],SMALL(IF(DetalhesDaFatura[Nº da fatura]=rngFatura,ROW(DetalhesDaFatura[])-ROW(DetalhesDaFatura[#Headers])), ROW(8:8)), MATCH($F$8, DetalhesDaFatura[#Headers], 0)),\"\")","v":0},{"v":100,"d":"R$ 100.00"}]
[null,{"$f":"IFERROR(INDEX(DetalhesDaFatura[],SMALL(IF(DetalhesDaFatura[Nº da fatura]=rngFatura,ROW(DetalhesDaFatura[])-ROW(DetalhesDaFatura[#Headers])), ROW(9:9)), MATCH($B$8, DetalhesDaFatura[#Headers], 0)),\"\")","v":"Z4575"},{"$f":"IFERROR(INDEX(DetalhesDaFatura[],SMALL(IF(DetalhesDaFatura[Nº da fatura]=rngFatura,ROW(DetalhesDaFatura[])-ROW(DetalhesDaFatura[#Headers])), ROW(9:9)), MATCH($C$8, DetalhesDaFatura[#Headers], 0)),\"\")","v":"Fatura 3-456-2 Dados 9"},{"$f":"IFERROR(INDEX(DetalhesDaFatura[],SMALL(IF(DetalhesDaFatura[Nº da fatura]=rngFatura,ROW(DetalhesDaFatura[])-ROW(DetalhesDaFatura[#Headers])), ROW(9:9)), MATCH($D$8, DetalhesDaFatura[#Headers], 0)),\"\")","v":5},{"$f":"IFERROR(INDEX(DetalhesDaFatura[],SMALL(IF(DetalhesDaFatura[Nº da fatura]=rngFatura,ROW(DetalhesDaFatura[])-ROW(DetalhesDaFatura[#Headers])), ROW(9:9)), MATCH($E$8, DetalhesDaFatura[#Headers], 0)),\"\")","v":{"v":7,"d":"R$ 7.00"}},{"$f":"IFERROR(INDEX(DetalhesDaFatura[],SMALL(IF(DetalhesDaFatura[Nº da fatura]=rngFatura,ROW(DetalhesDaFatura[])-ROW(DetalhesDaFatura[#Headers])), ROW(9:9)), MATCH($F$8, DetalhesDaFatura[#Headers], 0)),\"\")","v":{"v":3,"d":"R$ 3.00"}},{"v":32,"d":"R$ 32.00"}]
[null,{"$f":"IFERROR(INDEX(DetalhesDaFatura[],SMALL(IF(DetalhesDaFatura[Nº da fatura]=rngFatura,ROW(DetalhesDaFatura[])-ROW(DetalhesDaFatura[#Headers])), ROW(10:10)), MATCH($B$8, DetalhesDaFatura[#Headers], 0)),\"\")","v":"Z4576"},{"$f":"IFERROR(INDEX(DetalhesDaFatura[],SMALL(IF(DetalhesDaFatura[Nº da fatura]=rngFatura,ROW(DetalhesDaFatura[])-ROW(DetalhesDaFatura[#Headers])), ROW(10:10)), MATCH($C$8, DetalhesDaFatura[#Headers], 0)),\"\")","v":"Fatura 3-456-2 Dados 10"},{"$f":"IFERROR(INDEX(DetalhesDaFatura[],SMALL(IF(DetalhesDaFatura[Nº da fatura]=rngFatura,ROW(DetalhesDaFatura[])-ROW(DetalhesDaFatura[#Headers])), ROW(10:10)), MATCH($D$8, DetalhesDaFatura[#Headers], 0)),\"\")","v":80},{"$f":"IFERROR(INDEX(DetalhesDaFatura[],SMALL(IF(DetalhesDaFatura[Nº da fatura]=rngFatura,ROW(DetalhesDaFatura[])-ROW(DetalhesDaFatura[#Headers])), ROW(10:10)), MATCH($E$8, DetalhesDaFatura[#Headers], 0)),\"\")","v":{"v":1,"d":"R$ 1.00"}},{"$f":"IFERROR(INDEX(DetalhesDaFatura[],SMALL(IF(DetalhesDaFatura[Nº da fatura]=rngFatura,ROW(DetalhesDaFatura[])-ROW(DetalhesDaFatura[#Headers])), ROW(10:10)), MATCH($F$8, DetalhesDaFatura[#Headers], 0)),\"\")","v":0},{"v":80,"d":"R$ 80.00"}]
[null,{"$f":"IFERROR(INDEX(DetalhesDaFatura[],SMALL(IF(DetalhesDaFatura[Nº da fatura]=rngFatura,ROW(DetalhesDaFatura[])-ROW(DetalhesDaFatura[#Headers])), ROW(11:11)), MATCH($B$8, DetalhesDaFatura[#Headers], 0)),\"\")","v":"Z4577"},{"$f":"IFERROR(INDEX(DetalhesDaFatura[],SMALL(IF(DetalhesDaFatura[Nº da fatura]=rngFatura,ROW(DetalhesDaFatura[])-ROW(DetalhesDaFatura[#Headers])), ROW(11:11)), MATCH($C$8, DetalhesDaFatura[#Headers], 0)),\"\")","v":"Fatura 3-456-2 Dados 11"},{"$f":"IFERROR(INDEX(DetalhesDaFatura[],SMALL(IF(DetalhesDaFatura[Nº da fatura]=rngFatura,ROW(DetalhesDaFatura[])-ROW(DetalhesDaFatura[#Headers])), ROW(11:11)), MATCH($D$8, DetalhesDaFatura[#Headers], 0)),\"\")","v":65},{"$f":"IFERROR(INDEX(DetalhesDaFatura[],SMALL(IF(DetalhesDaFatura[Nº da fatura]=rngFatura,ROW(DetalhesDaFatura[])-ROW(DetalhesDaFatura[#Headers])), ROW(11:11)), MATCH($E$8, DetalhesDaFatura[#Headers], 0)),\"\")","v":{"v":7,"d":"R$ 7.00"}},{"$f":"IFERROR(INDEX(DetalhesDaFatura[],SMALL(IF(DetalhesDaFatura[Nº da fatura]=rngFatura,ROW(DetalhesDaFatura[])-ROW(DetalhesDaFatura[#Headers])), ROW(11:11)), MATCH($F$8, DetalhesDaFatura[#Headers], 0)),\"\")","v":0},{"v":455,"d":"R$ 455.00"}]
[null,{"$f":"IFERROR(INDEX(DetalhesDaFatura[],SMALL(IF(DetalhesDaFatura[Nº da fatura]=rngFatura,ROW(DetalhesDaFatura[])-ROW(DetalhesDaFatura[#Headers])), ROW(12:12)), MATCH($B$8, DetalhesDaFatura[#Headers], 0)),\"\")","v":"Z4578"},{"$f":"IFERROR(INDEX(DetalhesDaFatura[],SMALL(IF(DetalhesDaFatura[Nº da fatura]=rngFatura,ROW(DetalhesDaFatura[])-ROW(DetalhesDaFatura[#Headers])), ROW(12:12)), MATCH($C$8, DetalhesDaFatura[#Headers], 0)),\"\")","v":"Fatura 3-456-2 Dados 12"},{"$f":"IFERROR(INDEX(DetalhesDaFatura[],SMALL(IF(DetalhesDaFatura[Nº da fatura]=rngFatura,ROW(DetalhesDaFatura[])-ROW(DetalhesDaFatura[#Headers])), ROW(12:12)), MATCH($D$8, DetalhesDaFatura[#Headers], 0)),\"\")","v":44},{"$f":"IFERROR(INDEX(DetalhesDaFatura[],SMALL(IF(DetalhesDaFatura[Nº da fatura]=rngFatura,ROW(DetalhesDaFatura[])-ROW(DetalhesDaFatura[#Headers])), ROW(12:12)), MATCH($E$8, DetalhesDaFatura[#Headers], 0)),\"\")","v":{"v":1,"d":"R$ 1.00"}},{"$f":"IFERROR(INDEX(DetalhesDaFatura[],SMALL(IF(DetalhesDaFatura[Nº da fatura]=rngFatura,ROW(DetalhesDaFatura[])-ROW(DetalhesDaFatura[#Headers])), ROW(12:12)), MATCH($F$8, DetalhesDaFatura[#Headers], 0)),\"\")","v":0},{"v":44,"d":"R$ 44.00"}]
[null,{"$f":"IFERROR(INDEX(DetalhesDaFatura[],SMALL(IF(DetalhesDaFatura[Nº da fatura]=rngFatura,ROW(DetalhesDaFatura[])-ROW(DetalhesDaFatura[#Headers])), ROW(13:13)), MATCH($B$8, DetalhesDaFatura[#Headers], 0)),\"\")","v":""},{"$f":"IFERROR(INDEX(DetalhesDaFatura[],SMALL(IF(DetalhesDaFatura[Nº da fatura]=rngFatura,ROW(DetalhesDaFatura[])-ROW(DetalhesDaFatura[#Headers])), ROW(13:13)), MATCH($C$8, DetalhesDaFatura[#Headers], 0)),\"\")","v":""},{"$f":"IFERROR(INDEX(DetalhesDaFatura[],SMALL(IF(DetalhesDaFatura[Nº da fatura]=rngFatura,ROW(DetalhesDaFatura[])-ROW(DetalhesDaFatura[#Headers])), ROW(13:13)), MATCH($D$8, DetalhesDaFatura[#Headers], 0)),\"\")","v":""},{"$f":"IFERROR(INDEX(DetalhesDaFatura[],SMALL(IF(DetalhesDaFatura[Nº da fatura]=rngFatura,ROW(DetalhesDaFatura[])-ROW(DetalhesDaFatura[#Headers])), ROW(13:13)), MATCH($E$8, DetalhesDaFatura[#Headers], 0)),\"\")","v":""},{"$f":"IFERROR(INDEX(DetalhesDaFatura[],SMALL(IF(DetalhesDaFatura[Nº da fatura]=rngFatura,ROW(DetalhesDaFatura[])-ROW(DetalhesDaFatura[#Headers])), ROW(13:13)), MATCH($F$8, DetalhesDaFatura[#Headers], 0)),\"\")","v":""},""]
[null,{"$f":"IFERROR(INDEX(DetalhesDaFatura[],SMALL(IF(DetalhesDaFatura[Nº da fatura]=rngFatura,ROW(DetalhesDaFatura[])-ROW(DetalhesDaFatura[#Headers])), ROW(14:14)), MATCH($B$8, DetalhesDaFatura[#Headers], 0)),\"\")","v":""},{"$f":"IFERROR(INDEX(DetalhesDaFatura[],SMALL(IF(DetalhesDaFatura[Nº da fatura]=rngFatura,ROW(DetalhesDaFatura[])-ROW(DetalhesDaFatura[#Headers])), ROW(14:14)), MATCH($C$8, DetalhesDaFatura[#Headers], 0)),\"\")","v":""},{"$f":"IFERROR(INDEX(DetalhesDaFatura[],SMALL(IF(DetalhesDaFatura[Nº da fatura]=rngFatura,ROW(DetalhesDaFatura[])-ROW(DetalhesDaFatura[#Headers])), ROW(14:14)), MATCH($D$8, DetalhesDaFatura[#Headers], 0)),\"\")","v":""},{"$f":"IFERROR(INDEX(DetalhesDaFatura[],SMALL(IF(DetalhesDaFatura[Nº da fatura]=rngFatura,ROW(DetalhesDaFatura[])-ROW(DetalhesDaFatura[#Headers])), ROW(14:14)), MATCH($E$8, DetalhesDaFatura[#Headers], 0)),\"\")","v":""},{"$f":"IFERROR(INDEX(DetalhesDaFatura[],SMALL(IF(DetalhesDaFatura[Nº da fatura]=rngFatura,ROW(DetalhesDaFatura[])-ROW(DetalhesDaFatura[#Headers])), ROW(14:14)), MATCH($F$8, DetalhesDaFatura[#Headers], 0)),\"\")","v":""},""]
[null,{"$f":"IFERROR(INDEX(DetalhesDaFatura[],SMALL(IF(DetalhesDaFatura[Nº da fatura]=rngFatura,ROW(DetalhesDaFatura[])-ROW(DetalhesDaFatura[#Headers])), ROW(15:15)), MATCH($B$8, DetalhesDaFatura[#Headers], 0)),\"\")","v":""},{"$f":"IFERROR(INDEX(DetalhesDaFatura[],SMALL(IF(DetalhesDaFatura[Nº da fatura]=rngFatura,ROW(DetalhesDaFatura[])-ROW(DetalhesDaFatura[#Headers])), ROW(15:15)), MATCH($C$8, DetalhesDaFatura[#Headers], 0)),\"\")","v":""},{"$f":"IFERROR(INDEX(DetalhesDaFatura[],SMALL(IF(DetalhesDaFatura[Nº da fatura]=rngFatura,ROW(DetalhesDaFatura[])-ROW(DetalhesDaFatura[#Headers])), ROW(15:15)), MATCH($D$8, DetalhesDaFatura[#Headers], 0)),\"\")","v":""},{"$f":"IFERROR(INDEX(DetalhesDaFatura[],SMALL(IF(DetalhesDaFatura[Nº da fatura]=rngFatura,ROW(DetalhesDaFatura[])-ROW(DetalhesDaFatura[#Headers])), ROW(15:15)), MATCH($E$8, DetalhesDaFatura[#Headers], 0)),\"\")","v":""},{"$f":"IFERROR(INDEX(DetalhesDaFatura[],SMALL(IF(DetalhesDaFatura[Nº da fatura]=rngFatura,ROW(DetalhesDaFatura[])-ROW(DetalhesDaFatura[#Headers])), ROW(15:15)), MATCH($F$8, DetalhesDaFatura[#Headers], 0)),\"\")","v":""},""]
[null,{"$f":"IFERROR(INDEX(DetalhesDaFatura[],SMALL(IF(DetalhesDaFatura[Nº da fatura]=rngFatura,ROW(DetalhesDaFatura[])-ROW(DetalhesDaFatura[#Headers])), ROW(16:16)), MATCH($B$8, DetalhesDaFatura[#Headers], 0)),\"\")","v":""},{"$f":"IFERROR(INDEX(DetalhesDaFatura[],SMALL(IF(DetalhesDaFatura[Nº da fatura]=rngFatura,ROW(DetalhesDaFatura[])-ROW(DetalhesDaFatura[#Headers])), ROW(16:16)), MATCH($C$8, DetalhesDaFatura[#Headers], 0)),\"\")","v":""},{"$f":"IFERROR(INDEX(DetalhesDaFatura[],SMALL(IF(DetalhesDaFatura[Nº da fatura]=rngFatura,ROW(DetalhesDaFatura[])-ROW(DetalhesDaFatura[#Headers])), ROW(16:16)), MATCH($D$8, DetalhesDaFatura[#Headers], 0)),\"\")","v":""},{"$f":"IFERROR(INDEX(DetalhesDaFatura[],SMALL(IF(DetalhesDaFatura[Nº da fatura]=rngFatura,ROW(DetalhesDaFatura[])-ROW(DetalhesDaFatura[#Headers])), ROW(16:16)), MATCH($E$8, DetalhesDaFatura[#Headers], 0)),\"\")","v":""},{"$f":"IFERROR(INDEX(DetalhesDaFatura[],SMALL(IF(DetalhesDaFatura[Nº da fatura]=rngFatura,ROW(DetalhesDaFatura[])-ROW(DetalhesDaFatura[#Headers])), ROW(16:16)), MATCH($F$8, DetalhesDaFatura[#Headers], 0)),\"\")","v":""},""]
[null,{"$f":"IFERROR(INDEX(DetalhesDaFatura[],SMALL(IF(DetalhesDaFatura[Nº da fatura]=rngFatura,ROW(DetalhesDaFatura[])-ROW(DetalhesDaFatura[#Headers])), ROW(17:17)), MATCH($B$8, DetalhesDaFatura[#Headers], 0)),\"\")","v":""},{"$f":"IFERROR(INDEX(DetalhesDaFatura[],SMALL(IF(DetalhesDaFatura[Nº da fatura]=rngFatura,ROW(DetalhesDaFatura[])-ROW(DetalhesDaFatura[#Headers])), ROW(17:17)), MATCH($C$8, DetalhesDaFatura[#Headers], 0)),\"\")","v":""},{"$f":"IFERROR(INDEX(DetalhesDaFatura[],SMALL(IF(DetalhesDaFatura[Nº da fatura]=rngFatura,ROW(DetalhesDaFatura[])-ROW(DetalhesDaFatura[#Headers])), ROW(17:17)), MATCH($D$8, DetalhesDaFatura[#Headers], 0)),\"\")","v":""},{"$f":"IFERROR(INDEX(DetalhesDaFatura[],SMALL(IF(DetalhesDaFatura[Nº da fatura]=rngFatura,ROW(DetalhesDaFatura[])-ROW(DetalhesDaFatura[#Headers])), ROW(17:17)), MATCH($E$8, DetalhesDaFatura[#Headers], 0)),\"\")","v":""},{"$f":"IFERROR(INDEX(DetalhesDaFatura[],SMALL(IF(DetalhesDaFatura[Nº da fatura]=rngFatura,ROW(DetalhesDaFatura[])-ROW(DetalhesDaFatura[#Headers])), ROW(17:17)), MATCH($F$8, DetalhesDaFatura[#Headers], 0)),\"\")","v":""},""]
[null,{"$f":"IFERROR(INDEX(DetalhesDaFatura[],SMALL(IF(DetalhesDaFatura[Nº da fatura]=rngFatura,ROW(DetalhesDaFatura[])-ROW(DetalhesDaFatura[#Headers])), ROW(18:18)), MATCH($B$8, DetalhesDaFatura[#Headers], 0)),\"\")","v":""},{"$f":"IFERROR(INDEX(DetalhesDaFatura[],SMALL(IF(DetalhesDaFatura[Nº da fatura]=rngFatura,ROW(DetalhesDaFatura[])-ROW(DetalhesDaFatura[#Headers])), ROW(18:18)), MATCH($C$8, DetalhesDaFatura[#Headers], 0)),\"\")","v":""},{"$f":"IFERROR(INDEX(DetalhesDaFatura[],SMALL(IF(DetalhesDaFatura[Nº da fatura]=rngFatura,ROW(DetalhesDaFatura[])-ROW(DetalhesDaFatura[#Headers])), ROW(18:18)), MATCH($D$8, DetalhesDaFatura[#Headers], 0)),\"\")","v":""},{"$f":"IFERROR(INDEX(DetalhesDaFatura[],SMALL(IF(DetalhesDaFatura[Nº da fatura]=rngFatura,ROW(DetalhesDaFatura[])-ROW(DetalhesDaFatura[#Headers])), ROW(18:18)), MATCH($E$8, DetalhesDaFatura[#Headers], 0)),\"\")","v":""},{"$f":"IFERROR(INDEX(DetalhesDaFatura[],SMALL(IF(DetalhesDaFatura[Nº da fatura]=rngFatura,ROW(DetalhesDaFatura[])-ROW(DetalhesDaFatura[#Headers])), ROW(18:18)), MATCH($F$8, DetalhesDaFatura[#Headers], 0)),\"\")","v":""},""]
[null,{"$f":"IFERROR(INDEX(DetalhesDaFatura[],SMALL(IF(DetalhesDaFatura[Nº da fatura]=rngFatura,ROW(DetalhesDaFatura[])-ROW(DetalhesDaFatura[#Headers])), ROW(19:19)), MATCH($B$8, DetalhesDaFatura[#Headers], 0)),\"\")","v":""},{"$f":"IFERROR(INDEX(DetalhesDaFatura[],SMALL(IF(DetalhesDaFatura[Nº da fatura]=rngFatura,ROW(DetalhesDaFatura[])-ROW(DetalhesDaFatura[#Headers])), ROW(19:19)), MATCH($C$8, DetalhesDaFatura[#Headers], 0)),\"\")","v":""},{"$f":"IFERROR(INDEX(DetalhesDaFatura[],SMALL(IF(DetalhesDaFatura[Nº da fatura]=rngFatura,ROW(DetalhesDaFatura[])-ROW(DetalhesDaFatura[#Headers])), ROW(19:19)), MATCH($D$8, DetalhesDaFatura[#Headers], 0)),\"\")","v":""},{"$f":"IFERROR(INDEX(DetalhesDaFatura[],SMALL(IF(DetalhesDaFatura[Nº da fatura]=rngFatura,ROW(DetalhesDaFatura[])-ROW(DetalhesDaFatura[#Headers])), ROW(19:19)), MATCH($E$8, DetalhesDaFatura[#Headers], 0)),\"\")","v":""},{"$f":"IFERROR(INDEX(DetalhesDaFatura[],SMALL(IF(DetalhesDaFatura[Nº da fatura]=rngFatura,ROW(DetalhesDaFatura[])-ROW(DetalhesDaFatura[#Headers])), ROW(19:19)), MATCH($F$8, DetalhesDaFatura[#Headers], 0)),\"\")","v":""},""]
[null,{"$f":"IFERROR(INDEX(DetalhesDaFatura[],SMALL(IF(DetalhesDaFatura[Nº da fatura]=rngFatura,ROW(DetalhesDaFatura[])-ROW(DetalhesDaFatura[#Headers])), ROW(20:20)), MATCH($B$8, DetalhesDaFatura[#Headers], 0)),\"\")","v":""},{"$f":"IFERROR(INDEX(DetalhesDaFatura[],SMALL(IF(DetalhesDaFatura[Nº da fatura]=rngFatura,ROW(DetalhesDaFatura[])-ROW(DetalhesDaFatura[#Headers])), ROW(20:20)), MATCH($C$8, DetalhesDaFatura[#Headers], 0)),\"\")","v":""},{"$f":"IFERROR(INDEX(DetalhesDaFatura[],SMALL(IF(DetalhesDaFatura[Nº da fatura]=rngFatura,ROW(DetalhesDaFatura[])-ROW(DetalhesDaFatura[#Headers])), ROW(20:20)), MATCH($D$8, DetalhesDaFatura[#Headers], 0)),\"\")","v":""},{"$f":"IFERROR(INDEX(DetalhesDaFatura[],SMALL(IF(DetalhesDaFatura[Nº da fatura]=rngFatura,ROW(DetalhesDaFatura[])-ROW(DetalhesDaFatura[#Headers])), ROW(20:20)), MATCH($E$8, DetalhesDaFatura[#Headers], 0)),\"\")","v":""},{"$f":"IFERROR(INDEX(DetalhesDaFatura[],SMALL(IF(DetalhesDaFatura[Nº da fatura]=rngFatura,ROW(DetalhesDaFatura[])-ROW(DetalhesDaFatura[#Headers])), ROW(20:20)), MATCH($F$8, DetalhesDaFatura[#Headers], 0)),\"\")","v":""},""]
[null,{"$f":"IFERROR(INDEX(DetalhesDaFatura[],SMALL(IF(DetalhesDaFatura[Nº da fatura]=rngFatura,ROW(DetalhesDaFatura[])-ROW(DetalhesDaFatura[#Headers])), ROW(21:21)), MATCH($B$8, DetalhesDaFatura[#Headers], 0)),\"\")","v":""},{"$f":"IFERROR(INDEX(DetalhesDaFatura[],SMALL(IF(DetalhesDaFatura[Nº da fatura]=rngFatura,ROW(DetalhesDaFatura[])-ROW(DetalhesDaFatura[#Headers])), ROW(21:21)), MATCH($C$8, DetalhesDaFatura[#Headers], 0)),\"\")","v":""},{"$f":"IFERROR(INDEX(DetalhesDaFatura[],SMALL(IF(DetalhesDaFatura[Nº da fatura]=rngFatura,ROW(DetalhesDaFatura[])-ROW(DetalhesDaFatura[#Headers])), ROW(21:21)), MATCH($D$8, DetalhesDaFatura[#Headers], 0)),\"\")","v":""},{"$f":"IFERROR(INDEX(DetalhesDaFatura[],SMALL(IF(DetalhesDaFatura[Nº da fatura]=rngFatura,ROW(DetalhesDaFatura[])-ROW(DetalhesDaFatura[#Headers])), ROW(21:21)), MATCH($E$8, DetalhesDaFatura[#Headers], 0)),\"\")","v":""},{"$f":"IFERROR(INDEX(DetalhesDaFatura[],SMALL(IF(DetalhesDaFatura[Nº da fatura]=rngFatura,ROW(DetalhesDaFatura[])-ROW(DetalhesDaFatura[#Headers])), ROW(21:21)), MATCH($F$8, DetalhesDaFatura[#Headers], 0)),\"\")","v":""},""]
[null,{"$f":"IFERROR(INDEX(DetalhesDaFatura[],SMALL(IF(DetalhesDaFatura[Nº da fatura]=rngFatura,ROW(DetalhesDaFatura[])-ROW(DetalhesDaFatura[#Headers])), ROW(22:22)), MATCH($B$8, DetalhesDaFatura[#Headers], 0)),\"\")","v":""},{"$f":"IFERROR(INDEX(DetalhesDaFatura[],SMALL(IF(DetalhesDaFatura[Nº da fatura]=rngFatura,ROW(DetalhesDaFatura[])-ROW(DetalhesDaFatura[#Headers])), ROW(22:22)), MATCH($C$8, DetalhesDaFatura[#Headers], 0)),\"\")","v":""},{"$f":"IFERROR(INDEX(DetalhesDaFatura[],SMALL(IF(DetalhesDaFatura[Nº da fatura]=rngFatura,ROW(DetalhesDaFatura[])-ROW(DetalhesDaFatura[#Headers])), ROW(22:22)), MATCH($D$8, DetalhesDaFatura[#Headers], 0)),\"\")","v":""},{"$f":"IFERROR(INDEX(DetalhesDaFatura[],SMALL(IF(DetalhesDaFatura[Nº da fatura]=rngFatura,ROW(DetalhesDaFatura[])-ROW(DetalhesDaFatura[#Headers])), ROW(22:22)), MATCH($E$8, DetalhesDaFatura[#Headers], 0)),\"\")","v":""},{"$f":"IFERROR(INDEX(DetalhesDaFatura[],SMALL(IF(DetalhesDaFatura[Nº da fatura]=rngFatura,ROW(DetalhesDaFatura[])-ROW(DetalhesDaFatura[#Headers])), ROW(22:22)), MATCH($F$8, DetalhesDaFatura[#Headers], 0)),\"\")","v":""},""]
[null,{"$f":"IFERROR(INDEX(DetalhesDaFatura[],SMALL(IF(DetalhesDaFatura[Nº da fatura]=rngFatura,ROW(DetalhesDaFatura[])-ROW(DetalhesDaFatura[#Headers])), ROW(23:23)), MATCH($B$8, DetalhesDaFatura[#Headers], 0)),\"\")","v":""},{"$f":"IFERROR(INDEX(DetalhesDaFatura[],SMALL(IF(DetalhesDaFatura[Nº da fatura]=rngFatura,ROW(DetalhesDaFatura[])-ROW(DetalhesDaFatura[#Headers])), ROW(23:23)), MATCH($C$8, DetalhesDaFatura[#Headers], 0)),\"\")","v":""},{"$f":"IFERROR(INDEX(DetalhesDaFatura[],SMALL(IF(DetalhesDaFatura[Nº da fatura]=rngFatura,ROW(DetalhesDaFatura[])-ROW(DetalhesDaFatura[#Headers])), ROW(23:23)), MATCH($D$8, DetalhesDaFatura[#Headers], 0)),\"\")","v":""},{"$f":"IFERROR(INDEX(DetalhesDaFatura[],SMALL(IF(DetalhesDaFatura[Nº da fatura]=rngFatura,ROW(DetalhesDaFatura[])-ROW(DetalhesDaFatura[#Headers])), ROW(23:23)), MATCH($E$8, DetalhesDaFatura[#Headers], 0)),\"\")","v":""},{"$f":"IFERROR(INDEX(DetalhesDaFatura[],SMALL(IF(DetalhesDaFatura[Nº da fatura]=rngFatura,ROW(DetalhesDaFatura[])-ROW(DetalhesDaFatura[#Headers])), ROW(23:23)), MATCH($F$8, DetalhesDaFatura[#Headers], 0)),\"\")","v":""},""]
[null,{"$f":"IFERROR(INDEX(DetalhesDaFatura[],SMALL(IF(DetalhesDaFatura[Nº da fatura]=rngFatura,ROW(DetalhesDaFatura[])-ROW(DetalhesDaFatura[#Headers])), ROW(24:24)), MATCH($B$8, DetalhesDaFatura[#Headers], 0)),\"\")","v":""},{"$f":"IFERROR(INDEX(DetalhesDaFatura[],SMALL(IF(DetalhesDaFatura[Nº da fatura]=rngFatura,ROW(DetalhesDaFatura[])-ROW(DetalhesDaFatura[#Headers])), ROW(24:24)), MATCH($C$8, DetalhesDaFatura[#Headers], 0)),\"\")","v":""},{"$f":"IFERROR(INDEX(DetalhesDaFatura[],SMALL(IF(DetalhesDaFatura[Nº da fatura]=rngFatura,ROW(DetalhesDaFatura[])-ROW(DetalhesDaFatura[#Headers])), ROW(24:24)), MATCH($D$8, DetalhesDaFatura[#Headers], 0)),\"\")","v":""},{"$f":"IFERROR(INDEX(DetalhesDaFatura[],SMALL(IF(DetalhesDaFatura[Nº da fatura]=rngFatura,ROW(DetalhesDaFatura[])-ROW(DetalhesDaFatura[#Headers])), ROW(24:24)), MATCH($E$8, DetalhesDaFatura[#Headers], 0)),\"\")","v":""},{"$f":"IFERROR(INDEX(DetalhesDaFatura[],SMALL(IF(DetalhesDaFatura[Nº da fatura]=rngFatura,ROW(DetalhesDaFatura[])-ROW(DetalhesDaFatura[#Headers])), ROW(24:24)), MATCH($F$8, DetalhesDaFatura[#Headers], 0)),\"\")","v":""},""]
[null,{"$f":"IFERROR(INDEX(DetalhesDaFatura[],SMALL(IF(DetalhesDaFatura[Nº da fatura]=rngFatura,ROW(DetalhesDaFatura[])-ROW(DetalhesDaFatura[#Headers])), ROW(25:25)), MATCH($B$8, DetalhesDaFatura[#Headers], 0)),\"\")","v":""},{"$f":"IFERROR(INDEX(DetalhesDaFatura[],SMALL(IF(DetalhesDaFatura[Nº da fatura]=rngFatura,ROW(DetalhesDaFatura[])-ROW(DetalhesDaFatura[#Headers])), ROW(25:25)), MATCH($C$8, DetalhesDaFatura[#Headers], 0)),\"\")","v":""},{"$f":"IFERROR(INDEX(DetalhesDaFatura[],SMALL(IF(DetalhesDaFatura[Nº da fatura]=rngFatura,ROW(DetalhesDaFatura[])-ROW(DetalhesDaFatura[#Headers])), ROW(25:25)), MATCH($D$8, DetalhesDaFatura[#Headers], 0)),\"\")","v":""},{"$f":"IFERROR(INDEX(DetalhesDaFatura[],SMALL(IF(DetalhesDaFatura[Nº da fatura]=rngFatura,ROW(DetalhesDaFatura[])-ROW(DetalhesDaFatura[#Headers])), ROW(25:25)), MATCH($E$8, DetalhesDaFatura[#Headers], 0)),\"\")","v":""},{"$f":"IFERROR(INDEX(DetalhesDaFatura[],SMALL(IF(DetalhesDaFatura[Nº da fatura]=rngFatura,ROW(DetalhesDaFatura[])-ROW(DetalhesDaFatura[#Headers])), ROW(25:25)), MATCH($F$8, DetalhesDaFatura[#Headers], 0)),\"\")","v":""},""]
[{"$nulls":5},"Subtotal da fatura",{"$f":"SUM(FaturaProjeto[Preço])","v":{"v":2014,"d":"R$ 2,014.00"}}]
[{"$nulls":5},"Alíquota de imposto",{"$f":"VLOOKUP(rngFatura,FaturasPrincipal[],5)","v":{"v":0.0875,"d":"8.75%"}}]
[{"$nulls":5},"Imposto",{"$f":"G34*G35","v":{"v":176.225,"d":"R$ 176.23"}}]
[{"$nulls":5},"Outros",{"$f":"VLOOKUP(rngFatura,FaturasPrincipal[],6)","v":0}]
[null,{"$f":"\"Emitir todos os cheques nominais à ordem de \"&NomeDaEmpresa&\".\"","v":"Emitir todos os cheques nominais à ordem de Nome da Empresa."},{"$nulls":3},"Depósito recebido",{"$f":"VLOOKUP(rngFatura,FaturasPrincipal[],7)","v":0}]
[null,"Total devido em <#> dias. Contas em atraso devido a um encargo de serviço de <#>% por mês.",{"$nulls":3},"TOTAL",{"$f":"(G34+G36+G37)-G38","v":{"v":2190.225,"d":"R$ 2,190.23"}}]

{"sheet":"Clientes","index":1,"n_rows":6,"n_cols":12,"rows_kept":6}
[]
[null,null,"Clientes"]
[null,"Pesquisar","Nº da empresa","Nome da empresa","Nome de contato","Endereço","Cidade","Estado","CEP","Telefone","Email","Fax"]
[null,{"$f":"C4& \" - \"&D4","v":"1 - Tailspin Toys "},1,"Tailspin Toys ","Pedro Gonçalves","Rua Ipê-amarelo, 111","São Paulo","SP","123456","(55) 3555-0178","pessoa@example.com","(55) 3693-9595"]
[null,"2 - Contoso, Ltd",2,"Contoso, Ltd","Brenda Fernandes","Rua Castanheira, 555","Campinas","SP","098765","(55) 3555-0189","pessoa@exemplo.com","(55) 3693-0123"]
[null,"Totais",{"$f":"\"Número total de clientes: \"&SUBTOTAL(103,ListaClientes[Nº da empresa])","v":"Número total de clientes: 2"}]

{"sheet":"Faturas – Principal","index":2,"n_rows":6,"n_cols":11,"rows_kept":6}
[]
[null,"Faturas"]
[null,"Nº da fatura","Empresa","Data da fatura","Descrição do projeto","Alíquota de imposto","Outros","Depósito","Total de detalhes","Total da fatura","Anotações"]
[null,"3-456-1","1 - Tailspin Toys ",{"$f":"TODAY()","v":{"v":43706,"d":"4370600.00%"}},"Projeto 1",{"v":0.0875,"d":"8.75%"},{"v":100,"d":"R$ 100.00"},{"v":100,"d":"R$ 100.00"},{"$f":"SUMIF(DetalhesDaFatura[Nº da fatura],\"=\"&FaturasPrincipal[[#This Row],[Nº da fatura]],DetalhesDaFatura[Total])","v":{"v":5200,"d":"R$ 5,200.00"}},{"$f":"(FaturasPrincipal[[#This Row],[Total de detalhes]]*(1+FaturasPrincipal[[#This Row],[Alíquota de imposto]]))+FaturasPrincipal[[#This Row],[Outros]]-FaturasPrincipal[[#This Row],[Depósito]]","v":{"v":5654.999999999999,"d":"R$ 5,655.00"}}]
[null,"3-456-2","2 - Contoso, Ltd",{"$f":"TODAY()+10","v":{"v":43716,"d":"4371600.00%"}},"Projeto 2",{"v":0.0875,"d":"8.75%"},null,null,{"$f":"SUMIF(DetalhesDaFatura[Nº da fatura],\"=\"&FaturasPrincipal[[#This Row],[Nº da fatura]],DetalhesDaFatura[Total])","v":{"v":2014,"d":"R$ 2,014.00"}},{"$f":"(FaturasPrincipal[[#This Row],[Total de detalhes]]*(1+FaturasPrincipal[[#This Row],[Alíquota de imposto]]))+FaturasPrincipal[[#This Row],[Outros]]-FaturasPrincipal[[#This Row],[Depósito]]","v":{"v":2190.225,"d":"R$ 2,190.23"}}]
[null,"Totais",{"$f":"\"Total de faturas: \"&SUBTOTAL(103,FaturasPrincipal[Nº da fatura])","v":"Total de faturas: 2"},{"$nulls":3},{"$f":"SUBTOTAL(109,FaturasPrincipal[Outros])","v":{"v":100,"d":"R$ 100.00"}},{"$f":"SUBTOTAL(109,FaturasPrincipal[Depósito])","v":{"v":100,"d":"R$ 100.00"}},{"$f":"SUBTOTAL(109,FaturasPrincipal[Total de detalhes])","v":{"v":7214,"d":"R$ 7,214.00"}},{"$f":"SUBTOTAL(109,FaturasPrincipal[Total da fatura])","v":{"v":7845.2249999999985,"d":"R$ 7,845.23"}}]

{"sheet":"Detalhes da fatura","index":3,"n_rows":40,"n_cols":8,"rows_kept":40}
[]
[null,"Detalhes da fatura"]
[null,"Descrição","Nº da fatura","Nº do item","Qtd.","Preço unitário","Desconto","Total"]
[null,"Fatura 3-456-1 Dados 1","3-456-1",1,{"v":1,"d":"1 "},{"v":1,"d":"R$ 1.00"},{"v":1,"d":"R$ 1.00"},{"$f":"(DetalhesDaFatura[[#This Row],[Qtd.]]*DetalhesDaFatura[[#This Row],[Preço unitário]])-DetalhesDaFatura[[#This Row],[Desconto]]","v":{"v":0,"d":"R$ 0.00"}}]
[null,"Fatura 3-456-1 Dados 2","3-456-1",2,{"v":2,"d":"2 "},{"v":2,"d":"R$ 2.00"},{"v":2,"d":"R$ 2.00"},{"$f":"(DetalhesDaFatura[[#This Row],[Qtd.]]*DetalhesDaFatura[[#This Row],[Preço unitário]])-DetalhesDaFatura[[#This Row],[Desconto]]","v":{"v":2,"d":"R$ 2.00"}}]
[null,"Fatura 3-456-1 Dados 3","3-456-1",3,{"v":3,"d":"3 "},{"v":3,"d":"R$ 3.00"},{"v":3,"d":"R$ 3.00"},{"$f":"(DetalhesDaFatura[[#This Row],[Qtd.]]*DetalhesDaFatura[[#This Row],[Preço unitário]])-DetalhesDaFatura[[#This Row],[Desconto]]","v":{"v":6,"d":"R$ 6.00"}}]
[null,"Fatura 3-456-1 Dados 4","3-456-1",4,{"v":4,"d":"4 "},{"v":4,"d":"R$ 4.00"},{"v":4,"d":"R$ 4.00"},{"$f":"(DetalhesDaFatura[[#This Row],[Qtd.]]*DetalhesDaFatura[[#This Row],[Preço unitário]])-DetalhesDaFatura[[#This Row],[Desconto]]","v":{"v":12,"d":"R$ 12.00"}}]
[null,"Fatura 3-456-1 Dados 5","3-456-1",5,{"v":5,"d":"5 "},{"v":5,"d":"R$ 5.00"},{"v":5,"d":"R$ 5.00"},{"$f":"(DetalhesDaFatura[[#This Row],[Qtd.]]*DetalhesDaFatura[[#This Row],[Preço unitário]])-DetalhesDaFatura[[#This Row],[Desconto]]","v":{"v":20,"d":"R$ 20.00"}}]
[null,"Fatura 3-456-1 Dados 6","3-456-1",6,{"v":6,"d":"6 "},{"v":6,"d":"R$ 6.00"},{"v":6,"d":"R$ 6.00"},{"$f":"(DetalhesDaFatura[[#This Row],[Qtd.]]*DetalhesDaFatura[[#This Row],[Preço unitário]])-DetalhesDaFatura[[#This Row],[Desconto]]","v":{"v":30,"d":"R$ 30.00"}}]
[null,"Fatura 3-456-1 Dados 7","3-456-1",7,{"v":7,"d":"7 "},{"v":7,"d":"R$ 7.00"},{"v":7,"d":"R$ 7.00"},{"$f":"(DetalhesDaFatura[[#This Row],[Qtd.]]*DetalhesDaFatura[[#This Row],[Preço unitário]])-DetalhesDaFatura[[#This Row],[Desconto]]","v":{"v":42,"d":"R$ 42.00"}}]
[null,"Fatura 3-456-1 Dados 8","3-456-1",8,{"v":8,"d":"8 "},{"v":8,"d":"R$ 8.00"},{"v":8,"d":"R$ 8.00"},{"$f":"(DetalhesDaFatura[[#This Row],[Qtd.]]*DetalhesDaFatura[[#This Row],[Preço unitário]])-DetalhesDaFatura[[#This Row],[Desconto]]","v":{"v":56,"d":"R$ 56.00"}}]
[null,"Fatura 3-456-1 Dados 9","3-456-1",9,{"v":9,"d":"9 "},{"v":9,"d":"R$ 9.00"},{"v":9,"d":"R$ 9.00"},{"$f":"(DetalhesDaFatura[[#This Row],[Qtd.]]*DetalhesDaFatura[[#This Row],[Preço unitário]])-DetalhesDaFatura[[#This Row],[Desconto]]","v":{"v":72,"d":"R$ 72.00"}}]
[null,"Fatura 3-456-1 Dados 10","3-456-1",10,{"v":10,"d":"10 "},{"v":10,"d":"R$ 10.00"},{"v":10,"d":"R$ 10.00"},{"$f":"(DetalhesDaFatura[[#This Row],[Qtd.]]*DetalhesDaFatura[[#This Row],[Preço unitário]])-DetalhesDaFatura[[#This Row],[Desconto]]","v":{"v":90,"d":"R$ 90.00"}}]
[null,"Fatura 3-456-1 Dados 11","3-456-1",11,{"v":11,"d":"11 "},{"v":11,"d":"R$ 11.00"},{"v":11,"d":"R$ 11.00"},{"$f":"(DetalhesDaFatura[[#This Row],[Qtd.]]*DetalhesDaFatura[[#This Row],[Preço unitário]])-DetalhesDaFatura[[#This Row],[Desconto]]","v":{"v":110,"d":"R$ 110.00"}}]
[null,"Fatura 3-456-1 Dados 12","3-456-1",12,{"v":12,"d":"12 "},{"v":12,"d":"R$ 12.00"},{"v":12,"d":"R$ 12.00"},{"$f":"(DetalhesDaFatura[[#This Row],[Qtd.]]*DetalhesDaFatura[[#This Row],[Preço unitário]])-DetalhesDaFatura[[#This Row],[Desconto]]","v":{"v":132,"d":"R$ 132.00"}}]
[null,"Fatura 3-456-1 Dados 13","3-456-1",13,{"v":13,"d":"13 "},{"v":13,"d":"R$ 13.00"},{"v":13,"d":"R$ 13.00"},{"$f":"(DetalhesDaFatura[[#This Row],[Qtd.]]*DetalhesDaFatura[[#This Row],[Preço unitário]])-DetalhesDaFatura[[#This Row],[Desconto]]","v":{"v":156,"d":"R$ 156.00"}}]
[null,"Fatura 3-456-1 Dados 14","3-456-1",14,{"v":14,"d":"14 "},{"v":14,"d":"R$ 14.00"},{"v":14,"d":"R$ 14.00"},{"$f":"(DetalhesDaFatura[[#This Row],[Qtd.]]*DetalhesDaFatura[[#This Row],[Preço unitário]])-DetalhesDaFatura[[#This Row],[Desconto]]","v":{"v":182,"d":"R$ 182.00"}}]
[null,"Fatura 3-456-1 Dados 15","3-456-1",15,{"v":15,"d":"15 "},{"v":15,"d":"R$ 15.00"},{"v":15,"d":"R$ 15.00"},{"$f":"(DetalhesDaFatura[[#This Row],[Qtd.]]*DetalhesDaFatura[[#This Row],[Preço unitário]])-DetalhesDaFatura[[#This Row],[Desconto]]","v":{"v":210,"d":"R$ 210.00"}}]
[null,"Fatura 3-456-1 Dados 16","3-456-1",16,{"v":16,"d":"16 "},{"v":16,"d":"R$ 16.00"},{"v":16,"d":"R$ 16.00"},{"$f":"(DetalhesDaFatura[[#This Row],[Qtd.]]*DetalhesDaFatura[[#This Row],[Preço unitário]])-DetalhesDaFatura[[#This Row],[Desconto]]","v":{"v":240,"d":"R$ 240.00"}}]
[null,"Fatura 3-456-1 Dados 17","3-456-1",17,{"v":17,"d":"17 "},{"v":17,"d":"R$ 17.00"},{"v":17,"d":"R$ 17.00"},{"$f":"(DetalhesDaFatura[[#This Row],[Qtd.]]*DetalhesDaFatura[[#This Row],[Preço unitário]])-DetalhesDaFatura[[#This Row],[Desconto]]","v":{"v":272,"d":"R$ 272.00"}}]
[null,"Fatura 3-456-1 Dados 18","3-456-1",18,{"v":18,"d":"18 "},{"v":18,"d":"R$ 18.00"},{"v":18,"d":"R$ 18.00"},{"$f":"(DetalhesDaFatura[[#This Row],[Qtd.]]*DetalhesDaFatura[[#This Row],[Preço unitário]])-DetalhesDaFatura[[#This Row],[Desconto]]","v":{"v":306,"d":"R$ 306.00"}}]
[null,"Fatura 3-456-1 Dados 19","3-456-1",19,{"v":19,"d":"19 "},{"v":19,"d":"R$ 19.00"},{"v":19,"d":"R$ 19.00"},{"$f":"(DetalhesDaFatura[[#This Row],[Qtd.]]*DetalhesDaFatura[[#This Row],[Preço unitário]])-DetalhesDaFatura[[#This Row],[Desconto]]","v":{"v":342,"d":"R$ 342.00"}}]
[null,"Fatura 3-456-1 Dados 20","3-456-1",20,{"v":20,"d":"20 "},{"v":20,"d":"R$ 20.00"},{"v":20,"d":"R$ 20.00"},{"$f":"(DetalhesDaFatura[[#This Row],[Qtd.]]*DetalhesDaFatura[[#This Row],[Preço unitário]])-DetalhesDaFatura[[#This Row],[Desconto]]","v":{"v":380,"d":"R$ 380.00"}}]
[null,"Fatura 3-456-1 Dados 21","3-456-1",21,{"v":21,"d":"21 "},{"v":21,"d":"R$ 21.00"},{"v":21,"d":"R$ 21.00"},{"$f":"(DetalhesDaFatura[[#This Row],[Qtd.]]*DetalhesDaFatura[[#This Row],[Preço unitário]])-DetalhesDaFatura[[#This Row],[Desconto]]","v":{"v":420,"d":"R$ 420.00"}}]
[null,"Fatura 3-456-1 Dados 22","3-456-1",22,{"v":22,"d":"22 "},{"v":22,"d":"R$ 22.00"},{"v":22,"d":"R$ 22.00"},{"$f":"(DetalhesDaFatura[[#This Row],[Qtd.]]*DetalhesDaFatura[[#This Row],[Preço unitário]])-DetalhesDaFatura[[#This Row],[Desconto]]","v":{"v":462,"d":"R$ 462.00"}}]
[null,"Fatura 3-456-1 Dados 23","3-456-1",23,{"v":23,"d":"23 "},{"v":23,"d":"R$ 23.00"},{"v":23,"d":"R$ 23.00"},{"$f":"(DetalhesDaFatura[[#This Row],[Qtd.]]*DetalhesDaFatura[[#This Row],[Preço unitário]])-DetalhesDaFatura[[#This Row],[Desconto]]","v":{"v":506,"d":"R$ 506.00"}}]
[null,"Fatura 3-456-1 Dados 24","3-456-1",24,{"v":24,"d":"24 "},{"v":24,"d":"R$ 24.00"},{"v":24,"d":"R$ 24.00"},{"$f":"(DetalhesDaFatura[[#This Row],[Qtd.]]*DetalhesDaFatura[[#This Row],[Preço unitário]])-DetalhesDaFatura[[#This Row],[Desconto]]","v":{"v":552,"d":"R$ 552.00"}}]
[null,"Fatura 3-456-1 Dados 25","3-456-1",25,{"v":25,"d":"25 "},{"v":25,"d":"R$ 25.00"},{"v":25,"d":"R$ 25.00"},{"$f":"(DetalhesDaFatura[[#This Row],[Qtd.]]*DetalhesDaFatura[[#This Row],[Preço unitário]])-DetalhesDaFatura[[#This Row],[Desconto]]","v":{"v":600,"d":"R$ 600.00"}}]
[null,"Fatura 3-456-2 Dados 1","3-456-2","Z4567",{"v":39,"d":"39 "},{"v":5,"d":"R$ 5.00"},null,{"$f":"(DetalhesDaFatura[[#This Row],[Qtd.]]*DetalhesDaFatura[[#This Row],[Preço unitário]])-DetalhesDaFatura[[#This Row],[Desconto]]","v":{"v":195,"d":"R$ 195.00"}}]
[null,"Fatura 3-456-2 Dados 2","3-456-2","Z4568",{"v":40,"d":"40 "},{"v":4,"d":"R$ 4.00"},{"v":5,"d":"R$ 5.00"},{"$f":"(DetalhesDaFatura[[#This Row],[Qtd.]]*DetalhesDaFatura[[#This Row],[Preço unitário]])-DetalhesDaFatura[[#This Row],[Desconto]]","v":{"v":155,"d":"R$ 155.00"}}]
[null,"Fatura 3-456-2 Dados 3","3-456-2","Z4569",{"v":30,"d":"30 "},{"v":6,"d":"R$ 6.00"},{"v":7,"d":"R$ 7.00"},{"$f":"(DetalhesDaFatura[[#This Row],[Qtd.]]*DetalhesDaFatura[[#This Row],[Preço unitário]])-DetalhesDaFatura[[#This Row],[Desconto]]","v":{"v":173,"d":"R$ 173.00"}}]
[null,"Fatura 3-456-2 Dados 4","3-456-2","Z4570",{"v":40,"d":"40 "},{"v":7,"d":"R$ 7.00"},null,{"$f":"(DetalhesDaFatura[[#This Row],[Qtd.]]*DetalhesDaFatura[[#This Row],[Preço unitário]])-DetalhesDaFatura[[#This Row],[Desconto]]","v":{"v":280,"d":"R$ 280.00"}}]
[null,"Fatura 3-456-2 Dados 5","3-456-2","Z4571",{"v":10,"d":"10 "},{"v":4,"d":"R$ 4.00"},null,{"$f":"(DetalhesDaFatura[[#This Row],[Qtd.]]*DetalhesDaFatura[[#This Row],[Preço unitário]])-DetalhesDaFatura[[#This Row],[Desconto]]","v":{"v":40,"d":"R$ 40.00"}}]
[null,"Fatura 3-456-2 Dados 6","3-456-2","Z4572",{"v":5,"d":"5 "},{"v":8,"d":"R$ 8.00"},null,{"$f":"(DetalhesDaFatura[[#This Row],[Qtd.]]*DetalhesDaFatura[[#This Row],[Preço unitário]])-DetalhesDaFatura[[#This Row],[Desconto]]","v":{"v":40,"d":"R$ 40.00"}}]
[null,"Fatura 3-456-2 Dados 7","3-456-2","Z4573",{"v":70,"d":"70 "},{"v":6,"d":"R$ 6.00"},null,{"$f":"(DetalhesDaFatura[[#This Row],[Qtd.]]*DetalhesDaFatura[[#This Row],[Preço unitário]])-DetalhesDaFatura[[#This Row],[Desconto]]","v":{"v":420,"d":"R$ 420.00"}}]
[null,"Fatura 3-456-2 Dados 8","3-456-2","Z4574",{"v":25,"d":"25 "},{"v":4,"d":"R$ 4.00"},null,{"$f":"(DetalhesDaFatura[[#This Row],[Qtd.]]*DetalhesDaFatura[[#This Row],[Preço unitário]])-DetalhesDaFatura[[#This Row],[Desconto]]","v":{"v":100,"d":"R$ 100.00"}}]
[null,"Fatura 3-456-2 Dados 9","3-456-2","Z4575",{"v":5,"d":"5 "},{"v":7,"d":"R$ 7.00"},{"v":3,"d":"R$ 3.00"},{"$f":"(DetalhesDaFatura[[#This Row],[Qtd.]]*DetalhesDaFatura[[#This Row],[Preço unitário]])-DetalhesDaFatura[[#This Row],[Desconto]]","v":{"v":32,"d":"R$ 32.00"}}]
[null,"Fatura 3-456-2 Dados 10","3-456-2","Z4576",{"v":80,"d":"80 "},{"v":1,"d":"R$ 1.00"},null,{"$f":"(DetalhesDaFatura[[#This Row],[Qtd.]]*DetalhesDaFatura[[#This Row],[Preço unitário]])-DetalhesDaFatura[[#This Row],[Desconto]]","v":{"v":80,"d":"R$ 80.00"}}]
[null,"Fatura 3-456-2 Dados 11","3-456-2","Z4577",{"v":65,"d":"65 "},{"v":7,"d":"R$ 7.00"},null,{"$f":"(DetalhesDaFatura[[#This Row],[Qtd.]]*DetalhesDaFatura[[#This Row],[Preço unitário]])-DetalhesDaFatura[[#This Row],[Desconto]]","v":{"v":455,"d":"R$ 455.00"}}]
[null,"Fatura 3-456-2 Dados 12","3-456-2","Z4578",{"v":44,"d":"44 "},{"v":1,"d":"R$ 1.00"},null,{"$f":"(DetalhesDaFatura[[#This Row],[Qtd.]]*DetalhesDaFatura[[#This Row],[Preço unitário]])-DetalhesDaFatura[[#This Row],[Desconto]]","v":{"v":44,"d":"R$ 44.00"}}]

{"sheet":"Sobre o controlador de faturas","index":4,"n_rows":40,"n_cols":3,"rows_kept":40,"merged":[[3,1,3,7],[4,1,4,7],[5,1,5,7],[6,1,6,7],[7,2,7,7],[8,2,8,7],[9,2,9,7],[10,2,10,7],[11,2,11,7],[12,1,12,7],[13,2,13,3],[14,2,14,7],[15,1,15,7],[16,2,16,7],[17,2,17,7],[18,2,18,7],[19,2,19,7],[20,2,20,7],[21,2,21,7],[22,1,22,7],[23,1,23,7],[24,2,24,7],[25,2,25,7],[26,2,26,7],[27,2,27,7],[28,1,28,7],[29,1,29,7],[30,2,30,7],[31,2,31,7],[32,2,32,7],[33,2,33,7],[34,2,34,7],[36,2,36,7],[37,2,37,7],[38,2,38,7],[39,2,39,7]]}
[null,"Sobre o Controlador de Faturas"]
[]
[]
[null,"O Controlador de Faturas é projetado para manter um histórico de clientes, de faturas e seus detalhes para que você possa armazenar várias faturas sem criar vários arquivos. Você também pode usar o Controlador de Faturas para analisar os dados faturados anteriormente. Por exemplo, você pode exibir todas as faturas de um cliente, de um projeto específico ou exibir todas as faturas do último mês ou ano e muito mais."]
[null,"Antes de começar, observe os dados de exemplo fornecidos. Na planilha Fatura, selecione a célula à direita de Nº da fatura (célula L8) para exibir uma lista suspensa. Selecione a seta do menu suspenso e depois selecione uma fatura de exemplo. Observe como todas as informações da fatura são automaticamente alteradas para corresponder à fatura selecionada. Agora observe as planilhas Clientes, Faturas - Principal e Detalhes da fatura. As informações presentes nessas planilhas são utilizadas na fatura, de modo que, quaisquer alterações feitas nelas serão atualizadas automaticamente. "]
[null,"Como faço para começar?"]
[null,"Use as etapas a seguir para modificar a planilha Fatura de modo que ela contenha as informações da sua empresa."]
[null,"1.","Navegue até a planilha Fatura e, na guia Revisão, no grupo Proteger, selecione Desproteger Planilha. "]
[null,null,"Observação: a planilha Fatura está protegida para evitar alterações não intencionais, uma vez que, como mencionado anteriormente, a maioria dos dados nesta planilha é extraída de todas as outras planilhas da pasta de trabalho. "]
[null,"2.","Personalize o cabeçalho da fatura digitando o nome da sua empresa, endereço, cidade, estado, CEP, endereço de email, site e assim por diante. Na parte inferior da fatura (linha 43), modifique as instruções de pagamento. "]
[null,null,"Importante! Não modifique as informações de cobrança ou de fatura. Todas essas células têm fórmulas que atualizarão a fatura automaticamente, conforme observado na seção Sobre o Controlador de Faturas.  "]
[null,"3.","(Opcional) Modifique as cores de toda a pasta de trabalho: Na guia Layout da Página, no grupo Temas, selecione Cores e depois selecione outro conjunto de cores de tema na galeria de cores. "]
[null,"Dica: Crie um conjunto de cores de tema personalizado que corresponda à identidade visual da sua empresa! Para fazer isso, na guia Layout da Página, no grupo Temas, selecione Cores e depois Personalizar Cores. Para obter mais informações sobre como criar um conjunto de cores personalizado, consulte o tópico de Ajuda a seguir. "]
[null,null,"Personalizar um tema de documento."]
[null,"4.","Depois de fazer as alterações desejadas, volte para a planilha Fatura e, na guia Revisão, no grupo Proteger, selecione Proteger Planilha e depois selecione OK. Quando a planilha Fatura estiver protegida, a única célula que é possível selecionar é a célula com o menu suspenso do Nº da fatura."]
[null,"Como faço para criar uma fatura?"]
[null,"1.","Na planilha Clientes, insira as informações dos clientes, como o nome e o endereço da empresa. Observe que a informação Nº da empresa é uma entrada importante, pois fornece um identificador exclusivo para cada empresa, o qual será usado em todo o Controlador de Faturas. Observe também que você só precisa adicionar a empresa uma vez. Para faturas subsequentes da mesma empresa, essa etapa pode ser ignorada. "]
[null,null,"Observação:  se você atribuir o mesmo número para mais de uma empresa ou inserir o mesmo nome de empresa mais de uma vez, essas entradas ficarão vermelhas para alertar que ocorreu uma duplicação. "]
[null,"2.","Na planilha Faturas - Principal, insira as informações principais da sua fatura, como Nº da fatura, Data da fatura e Descrição do projeto. Assim como a informação Nº da empresa, o Nº da fatura também é uma entrada importante, pois fornece um identificador exclusivo para cada fatura, o qual é usado em todo o Controlador de Faturas. Outra entrada importante é a Empresa. Ao selecionar uma empresa no menu suspenso fornecido, ele associa sua fatura a essa empresa. Depois disso, ao selecionar um Nº de fatura na planilha Fatura, as informações da empresa, como nome e endereço, serão automaticamente preenchidas na fatura."]
[null,null,"Observação:  se você atribuir o mesmo número a mais de uma fatura, as entradas ficarão vermelhas para alertar que ocorreu uma duplicação. "]
[null,"3.","Na planilha Detalhes da fatura, insira os detalhes da fatura, como Descrição do item, Nº do item, Quantidade e Preço unitário. O menu suspenso do Nº da fatura fornece uma lista com as faturas inseridas na planilha Faturas - Principal para facilitar a entrada de dados. De modo semelhante ao Nº da empresa na etapa anterior, o Nº da fatura associa esse item de detalhe a uma fatura específica. Na planilha Fatura, ao selecionar um dos números de fatura no menu suspenso Nº da fatura, serão exibidos os itens de detalhes relacionada a essa fatura."]
[null,null,"Observação: há um limite de 25 itens de detalhe por fatura. Se mais de 25 itens forem adicionados, todas as entradas correspondentes ficarão vermelhas para alertar quanto a essa limitação. Se você tiver mais de 25 itens para adicionar, será necessário criar uma segunda fatura. "]
[null,"Como faço para adicionar mais clientes, faturas e detalhes da fatura?"]
[null,"Os dados de clientes, faturas e os detalhes da fatura são armazenados em tabelas do Excel. Ao adicionar uma nova linha a uma tabela, a linha recém-adicionada será formatada automaticamente e todos os cálculos serão copiados. Para adicionar novas linhas de tabela, siga um destes procedimentos:"]
[null,"● ","Se a tabela não tiver uma linha de Total, comece a digitar abaixo da tabela, e ela será expandida automaticamente quando você pressionar as teclas Enter ou Tab."]
[null,"● ","Coloque o ponteiro da célula na última célula acima da linha de Total, como na tabela Faturas na célula Observações da última fatura e pressione a tecla Tab."]
[null,"● ","Na guia Página Inserir, no grupo Células, selecione Inserir, e depois selecione Linha de Tabela Acima ou Linha de Tabela Abaixo. "]
[null,"● ","No canto inferior direito da tabela, coloque o mouse sobre a alça de dimensionamento e arraste para baixo para aumentar o número de linhas de tabela disponíveis."]
[null,"Como faço para analisar os detalhes da fatura?"]
[null,"Conforme observado na seção Sobre o Controlador de Faturas, depois de inserir várias faturas, você pode exibir uma lista com todas as faturas de um cliente, um projeto, um intervalo de datas especificado e muito mais. Esse tipo de análise é realizado usando um Filtro que permite limitar rapidamente uma lista de dados. Para acessar um filtro nas tabelas Clientes, Faturas ou Detalhes da fatura, selecione a seta do menu suspenso ao lado do nome de cada tabela. Um Painel de filtros será exibido, oferecendo várias opções de filtragem. Aqui estão alguns exemplos de filtragem que ajudam você a começar:"]
[null,"● ","Para exibir o valor total da fatura de um cliente específico: Na planilha Faturas - Principal, ao lado do campo Nº da empresa, selecione a seta do menu suspenso. No painel Filtro, clique em Selecionar Tudo para desmarcar todas as empresas, selecione a empresa desejada e depois selecione OK. "]
[null,null,"Dica: No painel Filtro, também é possível digitar o nome do cliente na caixa de texto Pesquisar para pesquisar rapidamente a lista disponível."]
[null,"● ","Para exibir todas as faturas de um cliente ou projeto específico: Comece filtrando pelo cliente desejado usando as etapas fornecidas no exemplo anterior. Em seguida, à direita do Nº do projeto, selecione a seta do menu suspenso. No painel Filtro, selecione o projeto ou projetos desejados e depois selecione OK. "]
[null,"● ","Para exibir todas as faturas do mês anterior: Na planilha Faturas - Principal, à direita do campo Data da fatura, selecione a seta do menu suspenso, posicione o mouse sobre Filtros de Data e selecione Mês Passado."]
[null,"● ","Para exibir todos os clientes com o mesmo código de área: Na planilha Clientes, à direita do campo Telefone, selecione a seta do menu suspenso. No painel Filtro, clique na caixa de texto Pesquisar, digite o código de área e selecione OK. "]
[null,"Dicas de filtro"]
[null,"● ","Caso uma tabela tenha uma linha de total, como Clientes e Faturas, os totais calculados refletirão apenas a lista filtrada."]
[null,"● ","Use vários filtros em um único campo ou em vários campos para ajustar os resultados."]
[null,"● ","Para limpar um único filtro, selecione a seta do menu suspenso de uma coluna filtrada anteriormente e depois selecione Limpar Filtro de <nome do campo>."]
[null,"● ","Para limpar vários filtros ao mesmo tempo, posicione o ponteiro do mouse na tabela, na guia Página Inicial, no grupo Edição, selecione Classificar e Filtrar e depois Limpar."]